[Event "Titled Tuesday Blitz July 11 Late 2023"]
[White "Villuendas Valero, Adrian"]
[Black "Blackwhite017"]
[WhiteFideId "2262460"]
[WhiteElo "2373"]
[BlackElo "2007"]
[Result "1-0"]
[Round "3"]
[TimeControl "180+2"]
[Date "2023.07.11"]
[WhiteClock "0:00:26"]
[BlackClock "0:00:00"]
[Board "186"]

1. e4 {[%clk 0:03:00]}  c5 {[%clk 0:02:58]} 2. Nf3 {[%clk 0:02:58]}  d6 {[%clk 0:02:58]} 3. c4 {[%clk 0:02:56]}  Nf6 {[%clk 0:02:52]} 4. Nc3 {[%clk 0:02:55]}  g6 {[%clk 0:02:50]} 5. d4 {[%clk 0:02:55]}  cxd4 {[%clk 0:02:49]} 6. Nxd4 {[%clk 0:02:55]}  Bg7 {[%clk 0:02:49]} 7. Be3 {[%clk 0:02:54]}  O-O {[%clk 0:02:46]} 8. Be2 {[%clk 0:02:53]}  Bd7 {[%clk 0:02:45]} 9. f3 {[%clk 0:02:53]}  Nc6 {[%clk 0:02:45]} 10. O-O {[%clk 0:02:52]}  a5 {[%clk 0:02:44]} 11. b3 {[%clk 0:02:44]}  Nxd4 {[%clk 0:02:44]} 12. Bxd4 {[%clk 0:02:42]}  Bc6 {[%clk 0:02:45]} 13. Nd5 {[%clk 0:02:40]}  Bxd5 {[%clk 0:02:19]} 14. exd5 {[%clk 0:02:41]}  Nd7 {[%clk 0:02:17]} 15. Bxg7 {[%clk 0:02:27]}  Kxg7 {[%clk 0:02:18]} 16. Qd4+ {[%clk 0:02:25]}  Kg8 {[%clk 0:02:16]} 17. Bd3 {[%clk 0:02:24]}  Qb6 {[%clk 0:02:13]} 18. Qxb6 {[%clk 0:02:23]}  Nxb6 {[%clk 0:02:14]} 19. a3 {[%clk 0:02:14]}  e5 {[%clk 0:01:50]} 20. dxe6 {[%clk 0:02:12]}  fxe6 {[%clk 0:01:51]} 21. Rfe1 {[%clk 0:02:11]}  Rfe8 {[%clk 0:01:43]} 22. Be4 {[%clk 0:02:09]}  d5 {[%clk 0:01:39]} 23. cxd5 {[%clk 0:02:06]}  exd5 {[%clk 0:01:38]} 24. Bd3 {[%clk 0:02:06]}  Kf7 {[%clk 0:01:36]} 25. Kf2 {[%clk 0:02:04]}  Rxe1 {[%clk 0:01:28]} 26. Rxe1 {[%clk 0:02:02]}  Rc8 {[%clk 0:01:28]} 27. Re3 {[%clk 0:01:51]}  a4 {[%clk 0:01:18]} 28. bxa4 {[%clk 0:01:43]}  Nxa4 {[%clk 0:01:14]} 29. Re2 {[%clk 0:01:34]}  Rc3 {[%clk 0:01:04]} 30. Bb5 {[%clk 0:01:31]}  Rxa3 {[%clk 0:00:53]} 31. Rc2 {[%clk 0:01:22]}  Nc3 {[%clk 0:00:48]} 32. Bd3 {[%clk 0:01:17]}  Ra2 {[%clk 0:00:36]} 33. Ke3 {[%clk 0:01:13]}  Rxc2 {[%clk 0:00:29]} 34. Bxc2 {[%clk 0:01:13]}  Ke6 {[%clk 0:00:27]} 35. Bb3 {[%clk 0:01:10]}  Kd6 {[%clk 0:00:21]} 36. Kd4 {[%clk 0:01:00]}  Nb5+ {[%clk 0:00:17]} 37. Kd3 {[%clk 0:00:59]}  Kc5 {[%clk 0:00:16]} 38. f4 {[%clk 0:00:56]}  Nd6 {[%clk 0:00:16]} 39. g4 {[%clk 0:00:55]}  b5 {[%clk 0:00:16]} 40. h4 {[%clk 0:00:53]}  b4 {[%clk 0:00:16]} 41. h5 {[%clk 0:00:52]}  gxh5 {[%clk 0:00:15]} 42. g5 {[%clk 0:00:39]}  h4 {[%clk 0:00:11]} 43. Ke3 {[%clk 0:00:29]}  h3 {[%clk 0:00:11]} 44. Kf3 {[%clk 0:00:29]}  Nc4 {[%clk 0:00:04]} 45. Bc2 {[%clk 0:00:28]}  Kd4 {[%clk 0:00:02]} 46. Bxh7 {[%clk 0:00:25]}  b3 {[%clk 0:00:02]} 47. Bb1 {[%clk 0:00:24]}  b2 {[%clk 0:00:03]} 48. Kg3 {[%clk 0:00:23]}  Nd2 {[%clk 0:00:03]} 49. Bc2 {[%clk 0:00:24]}  b1=Q {[%clk 0:00:03]} 50. Bxb1 {[%clk 0:00:24]}  Nxb1 {[%clk 0:00:03]} 51. g6 {[%clk 0:00:24]}  Nd2 {[%clk 0:00:02]} 52. g7 {[%clk 0:00:25]}  Ne4+ {[%clk 0:00:03]} 53. Kxh3 {[%clk 0:00:25]}  Nf6 {[%clk 0:00:03]} 54. Kh4 {[%clk 0:00:25]}  Ke4 {[%clk 0:00:03]} 55. Kg5 {[%clk 0:00:25]}  Ng8 {[%clk 0:00:01]} 56. f5 {[%clk 0:00:26]}  d4 {[%clk 0:00:02]} 57. f6 {[%clk 0:00:26]}  Nxf6 {[%clk 0:00:02]} 58. Kxf6 {[%clk 0:00:26]}  d3 {[%clk 0:00:03]} 59. g8=Q {[%clk 0:00:26]}  d2 {[%clk 0:00:02]} 60. Qg4+ {[%clk 0:00:26]}  Kd3 {[%clk 0:00:03]} 61. Qd1 {[%clk 0:00:26]}  Kc3 {[%clk 0:00:00]} 62. Kf5 {[%clk 0:00:26]} 1-0


[Site "https://www.chess.com"]

[Event "Titled Tuesday Blitz July 11 Late 2023"]
[White "Lutz, Igor Oscar"]
[Black "GAO"]
[WhiteFideId "2110806"]
[WhiteElo "1984"]
[BlackElo "2372"]
[Result "0-1"]
[Round "3"]
[TimeControl "180+2"]
[Date "2023.07.11"]
[WhiteClock "0:00:43"]
[BlackClock "0:01:38"]
[Board "187"]

1. d4 {[%clk 0:03:00]}  Nf6 {[%clk 0:02:59]} 2. c4 {[%clk 0:03:01]}  e6 {[%clk 0:02:58]} 3. g3 {[%clk 0:03:01]}  d5 {[%clk 0:02:58]} 4. Bg2 {[%clk 0:03:01]}  Bb4+ {[%clk 0:02:59]} 5. Bd2 {[%clk 0:03:01]}  Be7 {[%clk 0:02:59]} 6. Nf3 {[%clk 0:02:59]}  O-O {[%clk 0:02:59]} 7. O-O {[%clk 0:02:59]}  dxc4 {[%clk 0:03:00]} 8. Qc2 {[%clk 0:02:56]}  b5 {[%clk 0:03:00]} 9. Ne5 {[%clk 0:02:56]}  c6 {[%clk 0:02:42]} 10. Nxc6 {[%clk 0:02:49]}  Nxc6 {[%clk 0:02:42]} 11. Bxc6 {[%clk 0:02:49]}  Rb8 {[%clk 0:02:42]} 12. e3 {[%clk 0:02:24]}  Bb7 {[%clk 0:02:18]} 13. Bxb7 {[%clk 0:02:20]}  Rxb7 {[%clk 0:02:19]} 14. Nc3 {[%clk 0:02:20]}  a6 {[%clk 0:02:19]} 15. Ne4 {[%clk 0:02:17]}  Nxe4 {[%clk 0:02:17]} 16. Qxe4 {[%clk 0:02:18]}  Qd5 {[%clk 0:02:17]} 17. Qxd5 {[%clk 0:02:18]}  exd5 {[%clk 0:02:18]} 18. f3 {[%clk 0:02:05]}  Bf6 {[%clk 0:02:17]} 19. Bc3 {[%clk 0:02:04]}  Re8 {[%clk 0:02:16]} 20. a3 {[%clk 0:02:01]}  Rxe3 {[%clk 0:02:15]} 21. Kf2 {[%clk 0:01:58]}  Rbe7 {[%clk 0:02:14]} 22. Rfe1 {[%clk 0:01:56]}  Rxe1 {[%clk 0:02:13]} 23. Rxe1 {[%clk 0:01:57]}  Rxe1 {[%clk 0:02:13]} 24. Kxe1 {[%clk 0:01:58]}  Kf8 {[%clk 0:02:13]} 25. Ke2 {[%clk 0:01:57]}  Ke7 {[%clk 0:02:13]} 26. Ke3 {[%clk 0:01:57]}  Ke6 {[%clk 0:02:14]} 27. Kf4 {[%clk 0:01:58]}  h5 {[%clk 0:02:13]} 28. h3 {[%clk 0:01:55]}  g5+ {[%clk 0:02:11]} 29. Ke3 {[%clk 0:01:53]}  Be7 {[%clk 0:02:11]} 30. f4 {[%clk 0:01:47]}  Kf5 {[%clk 0:02:09]} 31. Kf3 {[%clk 0:01:41]}  gxf4 {[%clk 0:02:02]} 32. gxf4 {[%clk 0:01:40]}  Bd6 {[%clk 0:02:03]} 33. Bd2 {[%clk 0:01:41]}  a5 {[%clk 0:02:00]} 34. Bxa5 {[%clk 0:01:33]}  Bxf4 {[%clk 0:01:59]} 35. Bc3 {[%clk 0:01:33]}  Bd6 {[%clk 0:01:58]} 36. Bd2 {[%clk 0:01:25]}  Be7 {[%clk 0:01:54]} 37. Bc3 {[%clk 0:01:09]}  Bf6 {[%clk 0:01:52]} 38. Ke3 {[%clk 0:01:08]}  Bg5+ {[%clk 0:01:51]} 39. Kf3 {[%clk 0:01:08]}  Bc1 {[%clk 0:01:50]} 40. Kg3 {[%clk 0:01:00]}  Ke4 {[%clk 0:01:47]} 41. Kh4 {[%clk 0:01:01]}  f5 {[%clk 0:01:42]} 42. Kxh5 {[%clk 0:00:58]}  f4 {[%clk 0:01:42]} 43. Kg4 {[%clk 0:00:53]}  f3 {[%clk 0:01:42]} 44. Be1 {[%clk 0:00:52]}  Bxb2 {[%clk 0:01:38]} 45. h4 {[%clk 0:00:52]}  Bxd4 {[%clk 0:01:38]} 46. h5 {[%clk 0:00:43]}  f2 {[%clk 0:01:38]} 0-1


[Site "https://www.chess.com"]

[Event "Titled Tuesday Blitz July 11 Late 2023"]
[White "K2JW"]
[Black "Curtis, John"]
[BlackFideId "3200256"]
[WhiteElo "2367"]
[BlackElo "1982"]
[Result "1-0"]
[Round "3"]
[TimeControl "180+2"]
[Date "2023.07.11"]
[WhiteClock "0:01:01"]
[BlackClock "0:00:53"]
[Board "188"]

1. h3 {[%clk 0:02:54]}  Nf6 {[%clk 0:02:59]} 2. Nf3 {[%clk 0:02:51]}  h6 {[%clk 0:02:58]} 3. g4 {[%clk 0:02:50]}  d6 {[%clk 0:02:59]} 4. Bg2 {[%clk 0:02:50]}  e5 {[%clk 0:02:58]} 5. d4 {[%clk 0:02:48]}  e4 {[%clk 0:02:57]} 6. Nfd2 {[%clk 0:02:44]}  d5 {[%clk 0:02:57]} 7. e3 {[%clk 0:02:43]}  c6 {[%clk 0:02:57]} 8. c4 {[%clk 0:02:43]}  Bd6 {[%clk 0:02:54]} 9. Nc3 {[%clk 0:02:39]}  Be6 {[%clk 0:02:53]} 10. c5 {[%clk 0:02:37]}  Bc7 {[%clk 0:02:53]} 11. b4 {[%clk 0:02:34]}  b6 {[%clk 0:02:44]} 12. Rb1 {[%clk 0:02:25]}  a5 {[%clk 0:02:42]} 13. a3 {[%clk 0:02:25]}  b5 {[%clk 0:02:36]} 14. O-O {[%clk 0:01:55]}  a4 {[%clk 0:02:36]} 15. f3 {[%clk 0:01:54]}  exf3 {[%clk 0:02:25]} 16. Nxf3 {[%clk 0:01:55]}  Nbd7 {[%clk 0:02:16]} 17. Qc2 {[%clk 0:01:45]}  Qb8 {[%clk 0:01:58]} 18. e4 {[%clk 0:01:30]}  dxe4 {[%clk 0:01:50]} 19. Nxe4 {[%clk 0:01:31]}  O-O {[%clk 0:01:47]} 20. Nxf6+ {[%clk 0:01:22]}  Nxf6 {[%clk 0:01:46]} 21. g5 {[%clk 0:01:22]}  hxg5 {[%clk 0:01:12]} 22. Nxg5 {[%clk 0:01:20]}  Rd8 {[%clk 0:01:03]} 23. Rxf6 {[%clk 0:01:01]}  gxf6 {[%clk 0:01:02]} 24. Qh7+ {[%clk 0:01:01]}  Kf8 {[%clk 0:01:02]} 25. Nxe6+ {[%clk 0:01:02]}  fxe6 {[%clk 0:00:59]} 26. Bh6+ {[%clk 0:01:01]}  Ke8 {[%clk 0:00:53]} 27. Bxc6+ {[%clk 0:01:01]} 1-0


[Site "https://www.chess.com"]

[Event "Titled Tuesday Blitz July 11 Late 2023"]
[White "Alahakoon, Isuru"]
[Black "Filgueiras, Nathan Felipe"]
[WhiteFideId "9900993"]
[BlackFideId "2188562"]
[WhiteElo "2356"]
[BlackElo "1896"]
[Result "1-0"]
[Round "3"]
[TimeControl "180+2"]
[Date "2023.07.11"]
[WhiteClock "0:00:51"]
[BlackClock "0:01:52"]
[Board "192"]

1. Nf3 {[%clk 0:03:00]}  Nf6 {[%clk 0:02:51]} 2. d4 {[%clk 0:02:54]}  d5 {[%clk 0:02:49]} 3. e3 {[%clk 0:02:52]}  c5 {[%clk 0:02:47]} 4. Bd3 {[%clk 0:02:51]}  Nc6 {[%clk 0:02:48]} 5. b3 {[%clk 0:02:51]}  Bg4 {[%clk 0:02:47]} 6. Bb2 {[%clk 0:02:51]}  cxd4 {[%clk 0:02:46]} 7. exd4 {[%clk 0:02:49]}  e6 {[%clk 0:02:46]} 8. Nbd2 {[%clk 0:02:49]}  Be7 {[%clk 0:02:46]} 9. O-O {[%clk 0:02:48]}  O-O {[%clk 0:02:45]} 10. a3 {[%clk 0:02:48]}  a6 {[%clk 0:02:43]} 11. Qe1 {[%clk 0:02:47]}  b5 {[%clk 0:02:43]} 12. Ne5 {[%clk 0:02:46]}  Nxe5 {[%clk 0:02:43]} 13. dxe5 {[%clk 0:02:46]}  Nd7 {[%clk 0:02:42]} 14. f4 {[%clk 0:02:43]}  Bh5 {[%clk 0:02:41]} 15. Qe3 {[%clk 0:02:37]}  Bg6 {[%clk 0:02:34]} 16. Bxg6 {[%clk 0:02:34]}  hxg6 {[%clk 0:02:33]} 17. Nf3 {[%clk 0:02:32]}  Rc8 {[%clk 0:02:32]} 18. Nd4 {[%clk 0:02:29]}  Nc5 {[%clk 0:02:31]} 19. g4 {[%clk 0:02:04]}  Ne4 {[%clk 0:02:30]} 20. f5 {[%clk 0:01:59]}  exf5 {[%clk 0:02:18]} 21. gxf5 {[%clk 0:01:53]}  Bg5 {[%clk 0:02:14]} 22. Qh3 {[%clk 0:01:28]}  gxf5 {[%clk 0:02:10]} 23. Rxf5 {[%clk 0:01:16]}  Bh6 {[%clk 0:02:09]} 24. Raf1 {[%clk 0:01:12]}  Qb6 {[%clk 0:02:02]} 25. Kh1 {[%clk 0:01:06]}  a5 {[%clk 0:01:53]} 26. Rxf7 {[%clk 0:00:58]}  Rxf7 {[%clk 0:01:50]} 27. Qxc8+ {[%clk 0:00:56]}  Kh7 {[%clk 0:01:51]} 28. Rxf7 {[%clk 0:00:54]}  Qg6 {[%clk 0:01:52]} 29. Qf5 {[%clk 0:00:51]}  Qxf5 {[%clk 0:01:52]} 1-0


[Site "https://www.chess.com"]

[Event "Titled Tuesday Blitz July 11 Late 2023"]
[White "Burke, Paul"]
[Black "BenchGM"]
[WhiteFideId "2605767"]
[WhiteElo "1892"]
[BlackElo "2348"]
[Result "1-0"]
[Round "3"]
[TimeControl "180+2"]
[Date "2023.07.11"]
[WhiteClock "0:00:51"]
[BlackClock "0:00:22"]
[Board "193"]

1. e4 {[%clk 0:01:27]}  e6 {[%clk 0:02:55]} 2. d4 {[%clk 0:01:26]}  d5 {[%clk 0:02:55]} 3. e5 {[%clk 0:01:26]}  c5 {[%clk 0:02:55]} 4. Qg4 {[%clk 0:01:26]}  cxd4 {[%clk 0:02:53]} 5. Nf3 {[%clk 0:01:26]}  Nc6 {[%clk 0:02:51]} 6. Bd3 {[%clk 0:01:25]}  h5 {[%clk 0:02:44]} 7. Qg3 {[%clk 0:01:25]}  h4 {[%clk 0:02:28]} 8. Qg4 {[%clk 0:01:24]}  Nh6 {[%clk 0:02:23]} 9. Bxh6 {[%clk 0:01:21]}  Rxh6 {[%clk 0:02:21]} 10. O-O {[%clk 0:01:21]}  h3 {[%clk 0:02:09]} 11. g3 {[%clk 0:01:21]}  Qb6 {[%clk 0:02:06]} 12. b3 {[%clk 0:01:18]}  Bd7 {[%clk 0:01:40]} 13. c3 {[%clk 0:01:16]}  dxc3 {[%clk 0:01:36]} 14. Nxc3 {[%clk 0:01:16]}  O-O-O {[%clk 0:01:27]} 15. Nb5 {[%clk 0:01:10]}  Kb8 {[%clk 0:01:21]} 16. Nd6 {[%clk 0:01:09]}  Bxd6 {[%clk 0:01:20]} 17. exd6 {[%clk 0:01:09]}  g6 {[%clk 0:01:06]} 18. Qg5 {[%clk 0:01:04]}  Rh5 {[%clk 0:00:56]} 19. Qf6 {[%clk 0:01:01]}  Be8 {[%clk 0:00:43]} 20. Rac1 {[%clk 0:00:59]}  Nb4 {[%clk 0:00:26]} 21. Rc7 {[%clk 0:00:52]}  Nxd3 {[%clk 0:00:22]} 22. Qxd8# {[%clk 0:00:51]} 1-0


[Site "https://www.chess.com"]

[Event "Titled Tuesday Blitz July 11 Late 2023"]
[White "Gyulamiryan-koryun"]
[Black "Shapiro, Daniel"]
[BlackFideId "2001780"]
[WhiteElo "1857"]
[BlackElo "2341"]
[Result "0-1"]
[Round "3"]
[TimeControl "180+2"]
[Date "2023.07.11"]
[WhiteClock "0:00:00"]
[BlackClock "0:00:07"]
[Board "195"]

1. e4 {[%clk 0:02:49]}  c5 {[%clk 0:03:00]} 2. Be2 {[%clk 0:02:48]}  e6 {[%clk 0:02:54]} 3. f4 {[%clk 0:02:47]}  a6 {[%clk 0:02:52]} 4. Nf3 {[%clk 0:02:44]}  b5 {[%clk 0:02:51]} 5. a3 {[%clk 0:02:44]}  Bb7 {[%clk 0:02:51]} 6. d3 {[%clk 0:02:44]}  d5 {[%clk 0:02:47]} 7. Nbd2 {[%clk 0:02:39]}  Nc6 {[%clk 0:02:39]} 8. O-O {[%clk 0:02:38]}  Nf6 {[%clk 0:02:35]} 9. e5 {[%clk 0:02:32]}  Nd7 {[%clk 0:02:35]} 10. c3 {[%clk 0:02:31]}  d4 {[%clk 0:02:33]} 11. c4 {[%clk 0:02:30]}  Nb6 {[%clk 0:02:25]} 12. Ne4 {[%clk 0:02:27]}  Be7 {[%clk 0:02:06]} 13. b3 {[%clk 0:02:24]}  O-O {[%clk 0:02:04]} 14. Bb2 {[%clk 0:02:17]}  Rb8 {[%clk 0:02:01]} 15. Rc1 {[%clk 0:02:15]}  bxc4 {[%clk 0:02:00]} 16. bxc4 {[%clk 0:02:07]}  Ba8 {[%clk 0:02:00]} 17. Rb1 {[%clk 0:02:00]}  Na5 {[%clk 0:01:44]} 18. Nfd2 {[%clk 0:01:49]}  f5 {[%clk 0:01:31]} 19. Nd6 {[%clk 0:01:34]}  Bxd6 {[%clk 0:01:28]} 20. exd6 {[%clk 0:01:34]}  Qxd6 {[%clk 0:01:29]} 21. Bf3 {[%clk 0:01:34]}  Nc6 {[%clk 0:01:24]} 22. Ba1 {[%clk 0:01:22]}  e5 {[%clk 0:01:08]} 23. fxe5 {[%clk 0:01:05]}  Nxe5 {[%clk 0:01:08]} 24. Bxa8 {[%clk 0:01:05]}  Rxa8 {[%clk 0:00:58]} 25. Nf3 {[%clk 0:01:05]}  Ng4 {[%clk 0:00:54]} 26. Re1 {[%clk 0:00:56]}  Nd7 {[%clk 0:00:50]} 27. h3 {[%clk 0:00:50]}  Ne3 {[%clk 0:00:49]} 28. Rxe3 {[%clk 0:00:49]}  dxe3 {[%clk 0:00:49]} 29. d4 {[%clk 0:00:47]}  cxd4 {[%clk 0:00:38]} 30. Bxd4 {[%clk 0:00:41]}  Rae8 {[%clk 0:00:34]} 31. Qe2 {[%clk 0:00:39]}  Re4 {[%clk 0:00:31]} 32. Rd1 {[%clk 0:00:34]}  Qe6 {[%clk 0:00:22]} 33. c5 {[%clk 0:00:31]}  Nb8 {[%clk 0:00:18]} 34. Ng5 {[%clk 0:00:22]}  Qc6 {[%clk 0:00:18]} 35. Nxe4 {[%clk 0:00:21]}  Qxe4 {[%clk 0:00:17]} 36. Qf3 {[%clk 0:00:19]}  Qxf3 {[%clk 0:00:16]} 37. gxf3 {[%clk 0:00:19]}  f4 {[%clk 0:00:17]} 38. Kf1 {[%clk 0:00:16]}  Rd8 {[%clk 0:00:16]} 39. Ke2 {[%clk 0:00:16]}  Nc6 {[%clk 0:00:17]} 40. Bc3 {[%clk 0:00:16]}  Rxd1 {[%clk 0:00:13]} 41. Kxd1 {[%clk 0:00:15]}  g6 {[%clk 0:00:13]} 42. Ke2 {[%clk 0:00:13]}  Kf7 {[%clk 0:00:13]} 43. Kd3 {[%clk 0:00:12]}  Ke6 {[%clk 0:00:09]} 44. Ke4 {[%clk 0:00:12]}  g5 {[%clk 0:00:10]} 45. h4 {[%clk 0:00:11]}  h6 {[%clk 0:00:09]} 46. hxg5 {[%clk 0:00:10]}  hxg5 {[%clk 0:00:08]} 47. a4 {[%clk 0:00:00]}  Ne7 {[%clk 0:00:07]} 0-1


[Site "https://www.chess.com"]

[Event "Titled Tuesday Blitz July 11 Late 2023"]
[White "Carlsen, Magnus"]
[Black "Keymer, Vincent"]
[WhiteFideId "1503014"]
[BlackFideId "12940690"]
[WhiteElo "3285"]
[BlackElo "2926"]
[Result "1-0"]
[Round "4"]
[TimeControl "180+2"]
[Date "2023.07.11"]
[WhiteClock "0:00:04"]
[BlackClock "0:00:00"]
[Board "1"]

1. b4 {[%clk 0:02:52]}  Nf6 {[%clk 0:02:59]} 2. Bb2 {[%clk 0:02:48]}  e6 {[%clk 0:02:59]} 3. a3 {[%clk 0:02:48]}  d5 {[%clk 0:02:58]} 4. Nf3 {[%clk 0:02:47]}  b6 {[%clk 0:02:57]} 5. e3 {[%clk 0:02:47]}  Bb7 {[%clk 0:02:57]} 6. c4 {[%clk 0:02:47]}  Bd6 {[%clk 0:02:52]} 7. cxd5 {[%clk 0:02:43]}  exd5 {[%clk 0:02:52]} 8. Nc3 {[%clk 0:02:43]}  a6 {[%clk 0:02:49]} 9. Ne2 {[%clk 0:02:36]}  O-O {[%clk 0:02:36]} 10. g3 {[%clk 0:02:28]}  c5 {[%clk 0:02:25]} 11. bxc5 {[%clk 0:02:23]}  bxc5 {[%clk 0:02:26]} 12. Bg2 {[%clk 0:02:23]}  Nbd7 {[%clk 0:02:26]} 13. O-O {[%clk 0:02:20]}  Rb8 {[%clk 0:02:25]} 14. Qc2 {[%clk 0:02:18]}  Re8 {[%clk 0:02:20]} 15. Rfe1 {[%clk 0:02:07]}  Bc6 {[%clk 0:02:01]} 16. Rab1 {[%clk 0:02:04]}  h6 {[%clk 0:01:49]} 17. Ned4 {[%clk 0:01:49]}  Ba8 {[%clk 0:01:49]} 18. Nf5 {[%clk 0:01:49]}  Bf8 {[%clk 0:01:50]} 19. h3 {[%clk 0:01:37]}  d4 {[%clk 0:01:42]} 20. exd4 {[%clk 0:01:11]}  Be4 {[%clk 0:01:41]} 21. Rxe4 {[%clk 0:01:10]}  Nxe4 {[%clk 0:01:42]} 22. Ne5 {[%clk 0:00:57]}  Nxe5 {[%clk 0:01:14]} 23. dxe5 {[%clk 0:00:57]}  Ng5 {[%clk 0:01:05]} 24. Bc3 {[%clk 0:00:56]}  Ne6 {[%clk 0:00:59]} 25. Bc6 {[%clk 0:00:52]}  Rxb1+ {[%clk 0:00:57]} 26. Qxb1 {[%clk 0:00:53]}  Qb8 {[%clk 0:00:57]} 27. Qf1 {[%clk 0:00:50]}  Rd8 {[%clk 0:00:53]} 28. Ba5 {[%clk 0:00:37]}  Qxe5 {[%clk 0:00:28]} 29. Bxd8 {[%clk 0:00:36]}  Nxd8 {[%clk 0:00:26]} 30. Bd7 {[%clk 0:00:36]}  Qd5 {[%clk 0:00:16]} 31. Bc8 {[%clk 0:00:37]}  a5 {[%clk 0:00:17]} 32. Qe2 {[%clk 0:00:30]}  Nc6 {[%clk 0:00:07]} 33. Ne3 {[%clk 0:00:18]}  Qe4 {[%clk 0:00:04]} 34. Qc4 {[%clk 0:00:10]}  Nd4 {[%clk 0:00:04]} 35. Qd5 {[%clk 0:00:10]}  Qxd5 {[%clk 0:00:03]} 36. Nxd5 {[%clk 0:00:11]}  Nf3+ {[%clk 0:00:04]} 37. Kf1 {[%clk 0:00:10]}  Nxd2+ {[%clk 0:00:05]} 38. Ke2 {[%clk 0:00:11]}  Nb1 {[%clk 0:00:01]} 39. a4 {[%clk 0:00:11]}  c4 {[%clk 0:00:02]} 40. Ba6 {[%clk 0:00:10]}  Bb4 {[%clk 0:00:02]} 41. Nxb4 {[%clk 0:00:06]}  axb4 {[%clk 0:00:02]} 42. a5 {[%clk 0:00:07]}  b3 {[%clk 0:00:01]} 43. Bxc4 {[%clk 0:00:07]}  Nc3+ {[%clk 0:00:01]} 44. Ke3 {[%clk 0:00:04]}  b2 {[%clk 0:00:02]} 45. Bd3 {[%clk 0:00:05]}  Nd5+ {[%clk 0:00:02]} 46. Kd2 {[%clk 0:00:04]}  Nb4 {[%clk 0:00:02]} 47. Bb1 {[%clk 0:00:04]}  Kf8 {[%clk 0:00:02]} 48. Kc3 {[%clk 0:00:05]}  Nc6 {[%clk 0:00:03]} 49. a6 {[%clk 0:00:05]}  Ke7 {[%clk 0:00:04]} 50. Kxb2 {[%clk 0:00:05]}  Kd6 {[%clk 0:00:04]} 51. Be4 {[%clk 0:00:05]}  Na7 {[%clk 0:00:03]} 52. Kc3 {[%clk 0:00:06]}  Kc5 {[%clk 0:00:03]} 53. Bb7 {[%clk 0:00:04]}  Nb5+ {[%clk 0:00:02]} 54. Kd3 {[%clk 0:00:05]}  Kb6 {[%clk 0:00:02]} 55. Ke4 {[%clk 0:00:04]}  f6 {[%clk 0:00:00]} 56. Kf5 {[%clk 0:00:04]} 1-0


[Site "https://www.chess.com"]

[Event "Titled Tuesday Blitz July 11 Late 2023"]
[White "Ibarra Jerez, Jose Carlos"]
[Black "Nakamura, Hikaru"]
[WhiteFideId "2226332"]
[BlackFideId "2016192"]
[WhiteElo "2923"]
[BlackElo "3242"]
[Result "0-1"]
[Round "4"]
[TimeControl "180+2"]
[Date "2023.07.11"]
[WhiteClock "0:00:00"]
[BlackClock "0:00:14"]
[Board "2"]

1. e4 {[%clk 0:03:00]}  a6 {[%clk 0:03:00]} 2. d4 {[%clk 0:03:00]}  e6 {[%clk 0:03:01]} 3. c4 {[%clk 0:02:53]}  d5 {[%clk 0:02:53]} 4. Nc3 {[%clk 0:02:50]}  dxc4 {[%clk 0:02:44]} 5. Bxc4 {[%clk 0:02:48]}  b5 {[%clk 0:02:45]} 6. Bb3 {[%clk 0:02:38]}  c5 {[%clk 0:02:45]} 7. Nf3 {[%clk 0:02:33]}  Bb7 {[%clk 0:02:39]} 8. O-O {[%clk 0:02:32]}  Nf6 {[%clk 0:02:16]} 9. d5 {[%clk 0:02:25]}  c4 {[%clk 0:02:13]} 10. Bc2 {[%clk 0:02:21]}  Bc5 {[%clk 0:02:14]} 11. Bg5 {[%clk 0:02:16]}  Qb6 {[%clk 0:02:01]} 12. a4 {[%clk 0:02:12]}  Nbd7 {[%clk 0:01:59]} 13. axb5 {[%clk 0:02:07]}  axb5 {[%clk 0:02:00]} 14. Rxa8+ {[%clk 0:02:05]}  Bxa8 {[%clk 0:02:00]} 15. dxe6 {[%clk 0:01:56]}  fxe6 {[%clk 0:02:01]} 16. Bxf6 {[%clk 0:01:49]}  gxf6 {[%clk 0:01:21]} 17. Qd2 {[%clk 0:01:36]}  h5 {[%clk 0:01:12]} 18. Rd1 {[%clk 0:01:30]}  Bc6 {[%clk 0:01:12]} 19. Qe2 {[%clk 0:01:13]}  Kf7 {[%clk 0:00:55]} 20. e5 {[%clk 0:01:09]}  Bxf3 {[%clk 0:00:23]} 21. Rxd7+ {[%clk 0:00:53]}  Ke8 {[%clk 0:00:24]} 22. Qd2 {[%clk 0:00:52]}  Rg8 {[%clk 0:00:24]} 23. g3 {[%clk 0:00:36]}  Bxf2+ {[%clk 0:00:13]} 24. Qxf2 {[%clk 0:00:22]}  Qxf2+ {[%clk 0:00:14]} 25. Kxf2 {[%clk 0:00:22]}  Kxd7 {[%clk 0:00:15]} 26. Kxf3 {[%clk 0:00:23]}  fxe5 {[%clk 0:00:16]} 27. Nxb5 {[%clk 0:00:23]}  Rb8 {[%clk 0:00:16]} 28. Ba4 {[%clk 0:00:21]}  Kc6 {[%clk 0:00:15]} 29. Ke4 {[%clk 0:00:14]}  Kc5 {[%clk 0:00:15]} 30. Kxe5 {[%clk 0:00:10]}  Rf8 {[%clk 0:00:16]} 31. Nd4 {[%clk 0:00:09]}  Rf2 {[%clk 0:00:15]} 32. Bc2 {[%clk 0:00:05]}  Rxh2 {[%clk 0:00:15]} 33. Nxe6+ {[%clk 0:00:04]}  Kb4 {[%clk 0:00:16]} 34. Nd4 {[%clk 0:00:04]}  Rg2 {[%clk 0:00:16]} 35. Kf4 {[%clk 0:00:04]}  Kc5 {[%clk 0:00:13]} 36. Ne6+ {[%clk 0:00:04]}  Kd6 {[%clk 0:00:13]} 37. Nd4 {[%clk 0:00:04]}  Rd2 {[%clk 0:00:11]} 38. Ke3 {[%clk 0:00:04]}  Rh2 {[%clk 0:00:12]} 39. Ke4 {[%clk 0:00:02]}  Kc5 {[%clk 0:00:11]} 40. Ne6+ {[%clk 0:00:03]}  Kb4 {[%clk 0:00:11]} 41. Nd4 {[%clk 0:00:04]}  Rh3 {[%clk 0:00:09]} 42. Kf4 {[%clk 0:00:04]}  Rh1 {[%clk 0:00:09]} 43. Be4 {[%clk 0:00:03]}  Rd1 {[%clk 0:00:08]} 44. Nc6+ {[%clk 0:00:02]}  Kc5 {[%clk 0:00:07]} 45. Ne5 {[%clk 0:00:03]}  Rd2 {[%clk 0:00:06]} 46. Bf3 {[%clk 0:00:03]}  Rxb2 {[%clk 0:00:06]} 47. Nxc4 {[%clk 0:00:04]}  Kxc4 {[%clk 0:00:06]} 48. Bxh5 {[%clk 0:00:04]}  Kd4 {[%clk 0:00:07]} 49. Bg6 {[%clk 0:00:04]}  Rf2+ {[%clk 0:00:07]} 50. Kg5 {[%clk 0:00:04]}  Ke5 {[%clk 0:00:07]} 51. g4 {[%clk 0:00:05]}  Rf8 {[%clk 0:00:08]} 52. Bf5 {[%clk 0:00:05]}  Rg8+ {[%clk 0:00:08]} 53. Kh4 {[%clk 0:00:04]}  Kf4 {[%clk 0:00:09]} 54. Kh3 {[%clk 0:00:05]}  Kf3 {[%clk 0:00:09]} 55. Kh4 {[%clk 0:00:05]}  Ke3 {[%clk 0:00:09]} 56. Kh5 {[%clk 0:00:05]}  Kd4 {[%clk 0:00:09]} 57. g5 {[%clk 0:00:04]}  Ke5 {[%clk 0:00:09]} 58. Bh7 {[%clk 0:00:05]}  Rb8 {[%clk 0:00:10]} 59. Kg4 {[%clk 0:00:03]}  Rb4+ {[%clk 0:00:10]} 60. Kf3 {[%clk 0:00:03]}  Rh4 {[%clk 0:00:09]} 61. Bd3 {[%clk 0:00:02]}  Rh3+ {[%clk 0:00:08]} 62. Ke2 {[%clk 0:00:03]}  Kd4 {[%clk 0:00:07]} 63. Bf5 {[%clk 0:00:03]}  Re3+ {[%clk 0:00:08]} 64. Kd2 {[%clk 0:00:03]}  Re5 {[%clk 0:00:09]} 65. Bh7 {[%clk 0:00:03]}  Rxg5 {[%clk 0:00:09]} 66. Kc1 {[%clk 0:00:03]}  Rg2 {[%clk 0:00:09]} 67. Kb1 {[%clk 0:00:03]}  Kc3 {[%clk 0:00:10]} 68. Ka1 {[%clk 0:00:03]}  Rb2 {[%clk 0:00:11]} 69. Bb1 {[%clk 0:00:03]}  Kb3 {[%clk 0:00:11]} 70. Be4 {[%clk 0:00:03]}  Rd2 {[%clk 0:00:11]} 71. Bb1 {[%clk 0:00:03]}  Ka3 {[%clk 0:00:12]} 72. Bf5 {[%clk 0:00:04]}  Rd6 {[%clk 0:00:13]} 73. Bb1 {[%clk 0:00:03]}  Kb3 {[%clk 0:00:13]} 74. Bf5 {[%clk 0:00:03]}  Ra6+ {[%clk 0:00:13]} 75. Kb1 {[%clk 0:00:03]}  Rf6 {[%clk 0:00:14]} 76. Bc2+ {[%clk 0:00:04]}  Kc3 {[%clk 0:00:14]} 77. Be4 {[%clk 0:00:04]}  Rf4 {[%clk 0:00:14]} 78. Bf5 {[%clk 0:00:00]}  Rxf5 {[%clk 0:00:14]} 0-1


[Site "https://www.chess.com"]